bitfinex-derivatives/quotes_SOLF0:USTF0_20250404
["timestamp","ask_amount","ask_price","bid_price","bid_amount"]
[1743801548920,10.61090664,123.28,123.22,10.61090664]
[1743801549215,18.72690664,123.26,123.23,8.1176]
[1743801550033,18.78726452,123.26,123.23,8.17490449]
[1743801550509,18.78726452,123.26,123.23,0.05730449]
[1743801550814,10.67126452,123.26,123.23,0.05730449]
[1743801552010,18.78726452,123.26,123.23,0.05730449]
[1743801553217,10.67126452,123.26,123.23,0.05730449]
[1743801553520,10.61090664,123.24,123.19,10.61090664]
[1743801553703,37.5582,123.23,123.19,18.73120664]
[1743801554619,0.05438495,123.22,123.19,18.73120664]
[1743801555920,8.17318495,123.22,123.15,364.412309]
[1743801556121,8.17318495,123.22,123.19,10.61090664]
[1743801556314,0.05438495,123.22,123.19,10.61090664]
[1743801556721,0.05438495,123.22,123.19,18.73150664]
[1743801558416,8.17298495,123.22,123.19,10.61090664]
[1743801559025,8.17298495,123.22,123.16,29.42]
[1743801559225,8.17298495,123.22,123.18,10.61090664]
[1743801559520,0.05438495,123.22,123.18,10.61090664]
[1743801559725,0.05438495,123.22,123.17,10.61090664]
[1743801560222,10.66529159,123.22,123.15,1.62403572]
[1743801560428,10.61090664,123.2,123.15,12.23494236]
[1743801560609,10.66529159,123.22,123.17,10.61090664]
[1743801560816,0.0588548,123.21,123.18,8.1209]
[1743801561123,0.0588548,123.21,123.17,10.61090664]
[1743801562022,8.1784548,123.21,123.17,18.73230664]
[1743801562325,8.1784548,123.21,123.17,10.61090664]
[1743801562516,0.0588548,123.21,123.18,8.1211]
[1743801563327,8.1783548,123.21,123.18,8.1211]
[1743801563621,0.0588548,123.21,123.17,18.73240664]
[1743801564215,8.1202,123.2,123.17,10.61090664]
[1743801564613,0.0588548,123.21,123.17,10.61090664]
[1743801565220,8.121,123.19,123.17,10.61090664]
[1743801566830,0.0588548,123.21,123.16,8.1224]
[1743801566831,8.1212,123.18,123.16,8.1224]
[1743801567127,10.61090664,123.22,123.16,8.1224]
[1743801567330,0.05357641,123.18,123.16,8.1224]
[1743801569235,8.17507641,123.18,123.15,9.74693572]
[1743801574237,0.05357641,123.18,123.16,10.61090664]
[1743801575738,0.05357641,123.18,123.17,8.1219]
[1743801576728,14.96670664,123.24,123.19,8.1201]
[1743801576936,14.96670664,123.24,123.2,29.24]
[1743801577436,8.1189,123.22,123.2,29.24]
[1743801577937,8.17433723,123.22,123.2,29.29947165]
[1743801579343,8.17433723,123.22,123.2,37.41917165]
[1743801579534,0.05543723,123.22,123.2,37.41917165]
[1743801580241,8.17423723,123.22,123.2,37.41917165]
[1743801581739,0.05543723,123.22,123.2,37.41917165]
[1743801581929,0.05543723,123.22,123.21,8.1193]
[1743801603865,8.1162,123.26,123.23,8.1176]
[1743801604058,8.1162,123.26,123.24,29.22]
[1743801604261,8.1156,123.27,123.24,37.337]
[1743801604962,8.17478025,123.27,123.24,37.39314163]
[1743801605161,8.17478025,123.27,123.25,8.1164]
[1743801605871,8.116,123.26,123.24,29.27614163]
[1743801606457,8.1166,123.25,123.24,0.05614163]
[1743801608668,8.1163,123.26,123.24,0.05614163]
[1743801608868,8.1163,123.26,123.24,8.17344163]
[1743801609364,0.05918025,123.27,123.24,0.05614163]
[1743801610666,8.1166,123.26,123.24,0.05614163]
[1743801611274,8.1166,123.25,123.24,0.05614163]
[1743801620280,8.1188,123.22,123.19,39.83090664]
[1743801620670,8.1188,123.22,123.19,47.95110664]
[1743801620871,8.1183,123.23,123.19,39.83090664]
[1743801621275,0.05180795,123.22,123.2,0.05513958]
[1743801621984,0.05180795,123.22,123.21,8.1193]
[1743801622183,0.05180795,123.22,123.21,18.73020664]
[1743801629190,7.95e-06,123.22,123.21,18.73020664]
[1743801629594,59.60098665,123.28,123.25,8.1163]
[1743801630697,59.65807896,123.28,123.25,8.17313456]
[1743801631298,59.65807896,123.28,123.26,8.1158]
[1743801632599,14.71489231,123.28,123.26,8.1158]
[1743801633600,6.59989231,123.28,123.26,8.1158]
[1743801636213,6.59989231,123.28,123.25,0.05683456]
[1743801636504,10.61090664,123.26,123.21,39.83090664]
[1743801636704,17.21079895,123.28,123.23,10.61090664]
[1743801637007,8.1162,123.26,123.24,8.1169]
[1743801637698,8.1162,123.26,123.24,8.16981589]
[1743801637900,0.06129758,123.26,123.24,0.05291589]
[1743801638104,0.06129758,123.26,123.25,8.1166]
[1743801639705,0.06129758,123.26,123.24,8.16991589]
[1743801640406,0.06129758,123.26,123.24,37.38991589]
[1743801641210,0.06129758,123.26,123.24,29.27291589]
[1743801641700,0.06129758,123.26,123.24,37.38991589]
[1743801641894,8.17729758,123.26,123.24,29.27291589]
[1743801642207,0.06129758,123.26,123.24,29.27291589]
[1743801642608,8.1166,123.25,123.24,0.05291589]
[1743801649513,8.119,123.22,123.19,39.83090664]
[1743801649718,8.119,123.22,123.2,8.1198]
[1743801650010,8.1183,123.23,123.19,39.83090664]
[1743801650414,8.1183,123.23,123.2,8.1198]
[1743801650724,0.06026013,123.22,123.2,8.1198]
[1743801651014,0.06026013,123.22,123.21,8.1193]
[1743801653717,0.06026013,123.22,123.2,8.1195]
[1743801656021,8.17896013,123.22,123.2,8.1195]
[1743801656521,8.17896013,123.22,123.19,47.95110664]
[1743801656843,8.17896013,123.22,123.19,39.83090664]
[1743801657619,8.17896013,123.22,123.19,47.95110664]
[1743801658004,8.17896013,123.22,123.19,39.83090664]
[1743801658308,0.06026013,123.22,123.2,8.1199]
[1743801659220,8.17886013,123.22,123.2,8.1199]
[1743801659719,0.06026013,123.22,123.19,10.61090664]
[1743801659932,0.06026013,123.22,123.17,39.83090664]
[1743801660222,8.1202,123.2,123.17,47.95220664]
[1743801660922,8.1202,123.2,123.17,18.73220664]
[1743801661145,8.1202,123.2,123.17,47.95220664]
[1743801661527,8.1197,123.21,123.18,8.1211]
[1743801661723,0.06026013,123.22,123.17,39.83090664]
[1743801661922,0.06026013,123.22,123.19,10.61090664]
[1743801662124,8.17916013,123.22,123.19,18.73100664]
[1743801662423,8.17916013,123.22,123.19,10.61090664]
[1743801662624,8.17916013,123.22,123.19,18.73110664]
[1743801662923,8.17916013,123.22,123.19,10.61090664]
[1743801663120,0.06026013,123.22,123.19,10.61090664]
[1743801663517,0.06026013,123.22,123.21,8.1193]
[1743801664725,0.06026013,123.22,123.21,18.73020664]
[1743801665027,8.1162,123.26,123.21,10.61090664]
[1743801665214,44.94318665,123.27,123.23,10.61090664]
[1743801665420,44.94318665,123.27,123.23,39.83090664]
[1743801665626,8.116,123.26,123.23,47.94840664]
[1743801666126,8.17775491,123.26,123.23,48.0082105]
[1743801666541,0.06175491,123.26,123.23,39.8907105]
[1743801667026,0.06175491,123.26,123.25,8.1166]
[1743801667423,0.06175491,123.26,123.25,18.72750664]
[1743801667625,0.06175491,123.26,123.25,8.1166]
[1743801674228,0.06175491,123.26,123.24,10.61090664]
[1743801674735,0.06175491,123.26,123.25,8.1166]
[1743801674932,0.06175491,123.26,123.24,10.61090664]
[1743801675234,0.06175491,123.26,123.24,18.72760664]
[1743801675836,292.14,123.3,123.24,12.67590664]
[1743801676036,292.14,123.3,123.26,10.61090664]
[1743801676239,300.2537,123.3,123.26,47.92620664]
[1743801676837,300.2537,123.3,123.27,8.1152]
[1743801677033,0.05670112,123.29,123.27,8.17274643]
[1743801678433,0.05670112,123.29,123.27,0.05754643]
[1743801679336,0.05670112,123.29,123.27,8.17254643]
[1743801683144,8.17070112,123.29,123.27,8.17254643]
[1743801683635,0.05670112,123.29,123.27,0.05754643]
[1743801684137,8.1146,123.28,123.27,0.05754643]
[1743801685244,8.17110112,123.29,123.27,0.05754643]
[1743801686146,8.1146,123.28,123.27,0.05754643]
[1743801722889,0.05670112,123.29,123.27,0.05754643]
[1743801723086,0.05670112,123.29,123.27,10.66845307]
[1743801723580,0.05670112,123.29,123.27,18.78345307]
[1743801725579,0.05670112,123.29,123.27,10.66845307]
[1743801726694,0.05670112,123.29,123.27,18.78325307]
[1743801729796,8.17070112,123.29,123.27,18.78325307]
[1743801730091,0.05670112,123.29,123.27,18.78325307]
[1743801730393,8.17080112,123.29,123.27,18.78325307]
[1743801731395,0.05670112,123.29,123.27,18.78325307]
[1743801732495,8.17070112,123.29,123.27,18.78325307]
[1743801733098,8.1146,123.28,123.27,0.05754643]
[1743801735201,13.74028968,123.28,123.27,0.05754643]
[1743801735698,8.1169,123.25,123.23,39.79090664]
[1743801735902,8.1169,123.25,123.23,10.61090664]
[1743801736301,5.62568968,123.24,123.23,10.61090664]
[1743801736752,13.74298968,123.24,123.23,10.61090664]
[1743801736999,13.74298968,123.24,123.22,0.05437471]
[1743801737499,5.62568968,123.23,123.22,0.05437471]
[1743801738201,5.62568968,123.23,123.22,8.17287471]
[1743801740901,0.0543389,123.25,123.24,8.1173]
[1743801741298,5.30336134,123.25,123.24,8.1173]
[1743801752915,0.0543389,123.25,123.24,8.1173]
[1743801753714,5.30446938,123.25,123.24,8.1173]
[1743801772032,5.30446938,123.25,123.22,0.05437471]
[1743801772329,5.25013048,123.24,123.22,0.05437471]
[1743801772931,5.25013048,123.23,123.22,0.05437471]
[1743801773933,13.36803048,123.23,123.22,0.05437471]
[1743801780143,5.25013048,123.23,123.22,0.05437471]
[1743801780850,13.36803048,123.23,123.22,0.05437471]
[1743801781447,5.25013048,123.23,123.22,0.05437471]
[1743801783055,5.25013048,123.23,123.22,8.17297471]
[1743801787255,13.36803048,123.23,123.22,0.05437471]
[1743801787459,5.25013048,123.23,123.17,10.61090664]
[1743801787658,12.68730664,123.22,123.17,10.61090664]
[1743801787964,8.1204,123.2,123.17,18.73250664]
[1743801788556,8.18076604,123.2,123.17,18.73250664]
[1743801789655,8.1206,123.19,123.17,18.73250664]
[1743801789855,8.1206,123.19,123.17,10.61090664]
[1743801790757,8.1206,123.19,123.17,18.73270664]
[1743801791052,8.1206,123.19,123.17,10.61090664]
[1743801793557,8.1212,123.18,123.17,10.61090664]
[1743801794750,8.1212,123.18,123.16,29.16]
[1743801795459,8.122,123.17,123.15,20.35804236]
[1743801795848,0.06003772,123.17,123.15,20.35804236]
[1743801796055,0.06003772,123.17,123.15,1.62403572]
[1743801796658,8.18223772,123.17,123.15,1.62403572]
[1743801798661,0.06003772,123.17,123.15,1.62403572]
[1743801799159,8.18223772,123.17,123.15,1.62403572]
[1743801800770,8.18223772,123.17,123.15,9.74723572]
[1743801801770,8.1226,123.16,123.15,1.62403572]
[1743801802070,8.1226,123.16,123.13,10.61090664]
[1743801802071,0.06003772,123.17,123.13,10.61090664]
[1743801802365,8.1229,123.16,123.13,18.73510664]
[1743801803063,8.18223772,123.17,123.14,8.1237]
[1743801804863,8.18223772,123.17,123.15,8.1231]
[1743801806862,0.06003772,123.17,123.16,8.1226]
[1743801807062,0.06003772,123.17,123.13,10.61090664]
[1743801807268,5.02795126,123.17,123.13,10.61090664]
[1743801807566,0.06003772,123.17,123.13,10.61090664]
[1743801807765,0.06003772,123.17,123.14,8.1234]
[1743801808867,8.1229,123.16,123.13,18.73510664]
[1743801809167,0.06003772,123.17,123.13,18.73510664]
[1743801809967,8.123,123.16,123.13,18.73510664]
[1743801810469,8.18223772,123.17,123.13,10.61090664]
[1743801810977,8.1226,123.16,123.14,8.1235]
[1743801811371,0.06003772,123.17,123.13,10.61090664]
[1743801811769,8.1228,123.16,123.14,8.1238]
[1743801813371,8.18233772,123.17,123.14,8.1238]
[1743801813759,0.06003772,123.17,123.14,8.1238]
[1743801814666,8.1229,123.16,123.14,8.1238]
[1743801814970,0.06003772,123.17,123.13,18.73500664]
[1743801815294,8.123,123.16,123.13,10.61090664]
[1743801815769,8.123,123.16,123.14,8.1239]
[1743801815982,0.06003772,123.17,123.13,10.61090664]
[1743801816167,0.06003772,123.17,123.13,18.73490664]
[1743801816388,0.06003772,123.17,123.13,10.61090664]
[1743801816571,8.1235,123.15,123.13,10.61090664]
[1743801818974,8.1239,123.14,123.13,10.61090664]
[1743801819677,8.1235,123.15,123.13,10.61090664]
[1743801820471,8.124,123.14,123.11,47.89650664]
[1743801820771,41.92550664,123.18,123.11,39.77090664]
[1743801820970,0.06169781,123.14,123.12,8.1249]
[1743801829483,0.06169781,123.14,123.13,8.1245]
[1743801829982,0.06169781,123.14,123.12,8.1247]
[1743801831684,0.06169781,123.14,123.13,8.1245]
[1743801832494,5.0454014,123.14,123.13,8.1245]
[1743801836485,5.0454014,123.14,123.13,18.73540664]
[1743801837082,0.06169781,123.14,123.13,18.73540664]
[1743801839377,13.18067276,123.14,123.12,8.1248]
[1743801839577,13.18067276,123.14,123.12,18.73570664]
[1743801839876,8.18589781,123.14,123.12,18.73570664]
[1743801845183,0.06169781,123.14,123.13,8.1245]
[1743801845490,5.06617851,123.14,123.13,8.1245]
[1743801849492,5.06617851,123.14,123.12,18.73570664]
[1743801849928,0.06169781,123.14,123.12,18.73570664]
[1743801850497,8.1246,123.13,123.1,8.126]
[1743801850793,0.06169781,123.14,123.08,12.80760664]
[1743801851283,8.1259,123.11,123.08,20.93520664]
[1743801851684,8.18290223,123.11,123.08,20.93520664]
[1743801851884,0.05700223,123.11,123.09,8.1271]
[1743801852081,0.05700223,123.11,123.06,10.61090664]
[1743801852295,8.1275,123.09,123.06,10.61090664]
[1743801853196,5.90336097,123.08,123.06,18.74000664]
[1743801853504,8.1275,123.09,123.06,18.74000664]
[1743801853695,5.96071355,123.08,123.06,18.74000664]
[1743801853889,0.06242088,123.08,123.06,18.74000664]
[1743801855231,365.30002784,123.19,123.07,29.14]
[1743801855494,5.71312007,123.14,123.12,10.61090664]
[1743801855696,8.1236,123.15,123.12,10.61090664]
[1743801855901,50.65645571,123.14,123.12,10.61090664]
[1743801856096,44.94318665,123.14,123.12,10.61090664]
[1743801856334,44.94318665,123.14,123.12,18.73570664]
[1743801856499,45.00294767,123.14,123.12,18.79469223]
[1743801858503,45.00294767,123.14,123.13,8.1245]
[1743801858797,89.88637332,123.15,123.13,29.14]
[1743801858997,123.81289197,123.21,123.18,8.1211]
[1743801859297,123.81289197,123.21,123.18,10.61090664]
[1743801859605,123.81289197,123.21,123.18,18.73180664]
[1743801859902,123.81289197,123.21,123.18,10.61090664]
[1743801860204,123.86435281,123.21,123.19,8.1202]
[1743801861799,0.05146084,123.21,123.18,10.66907744]
[1743801863198,0.05146084,123.21,123.2,10.61090664]
[1743801863407,8.1162,123.26,123.2,39.75090664]
[1743801863592,8.1162,123.26,123.22,10.61090664]
[1743801863899,8.1162,123.26,123.23,29.14]
[1743801864302,18.72710664,123.26,123.23,29.14]
[1743801864601,18.78314773,123.26,123.23,0.06030401]
[1743801865099,8.1169,123.25,123.23,0.06030401]
[1743801866707,10.66694773,123.26,123.23,0.06030401]
[1743801867102,8.117,123.25,123.23,0.06030401]
[1743801867606,8.1173,123.24,123.23,0.06030401]
[1743801868000,18.72820664,123.24,123.23,0.06030401]
[1743801868395,39.73090664,123.24,123.16,10.61090664]
[1743801868602,10.61090664,123.2,123.16,10.61090664]
[1743801868901,8.1209,123.19,123.16,18.73300664]
[1743801869492,8.17928928,123.19,123.16,18.79254293]
[1743801870407,8.17928928,123.19,123.15,10.61090664]
[1743801870605,8.1209,123.19,123.15,10.61090664]
[1743801871306,8.1209,123.19,123.15,18.73380664]
[1743801871507,0.05800769,123.18,123.16,0.05996456]
[1743801871806,8.17930769,123.18,123.16,0.05996456]
[1743801879215,8.1219,123.17,123.16,0.05996456]
[1743801879514,0.05800769,123.18,123.16,0.05996456]
[1743801880015,8.17960769,123.18,123.16,0.05996456]
[1743801880218,8.17960769,123.18,123.16,8.18256456]
[1743801880420,0.05800769,123.18,123.16,8.18256456]
[1743801884041,0.05800769,123.18,123.17,18.73280664]
[1743801889045,0.05800769,123.18,123.17,8.1219]
[1743801900632,41.78750664,123.26,123.22,8.1186]
[1743801900837,302.85090664,123.24,123.19,10.61090664]
[1743801901349,5.68697447,123.23,123.17,10.61090664]
[1743801901548,29.12,123.23,123.17,10.61090664]
[1743801901742,0.06020667,123.21,123.19,8.18053617]
[1743801902151,0.06020667,123.21,123.2,8.1199]
[1743801934281,0.06020667,123.21,123.19,0.06023617]
[1743801934877,8.1199,123.2,123.19,0.06023617]
[1743801936272,8.1212,123.19,123.16,18.73330664]
[1743801936472,8.1212,123.19,123.15,29.1]
[1743801936675,8.1212,123.19,123.15,39.71090664]
[1743801937001,8.1212,123.19,123.16,8.122]
[1743801937173,8.1212,123.19,123.15,39.71090664]
[1743801937380,8.17491984,123.19,123.16,0.06192829]
[1743801937682,0.05371984,123.19,123.17,8.1216]
[1743801939081,8.17461984,123.19,123.17,8.1216]
[1743801940224,8.17461984,123.19,123.16,8.18402829]
[1743801940383,8.17461984,123.19,123.16,0.06192829]
[1743801940585,0.05371984,123.19,123.17,8.1216]
[1743801942587,0.05371984,123.19,123.16,0.06192829]
[1743801943082,0.05371984,123.19,123.16,10.67283493]
[1743801943786,0.05371984,123.19,123.18,8.1212]
[1743801955998,0.05371984,123.19,123.17,8.1215]
[1743801956200,0.05371984,123.19,123.16,10.67283493]
[1743801957202,0.05371984,123.19,123.18,8.1212]
[1743801964023,0.05371984,123.19,123.17,8.1217]
[1743801965604,0.05371984,123.19,123.16,18.79503493]
[1743801965902,8.17431984,123.19,123.16,18.79503493]
[1743801966504,8.1214,123.18,123.16,10.67283493]
[1743801967604,8.1214,123.18,123.16,0.06192829]
[1743801969100,8.1214,123.18,123.16,8.18442829]
[1743801969301,8.1219,123.17,123.16,0.06192829]
[1743801971903,8.1215,123.18,123.16,0.06192829]
[1743801974702,8.1215,123.18,123.14,10.61090664]
[1743801974904,10.66462648,123.19,123.14,10.61090664]
[1743801975297,10.66462648,123.19,123.15,8.1229]
[1743801975494,8.1217,123.18,123.15,8.1229]
[1743801976810,8.1217,123.18,123.16,8.1225]
[1743801977309,18.78562648,123.19,123.16,8.1225]
[1743801978012,0.05371984,123.19,123.17,8.1217]
[1743801978312,0.05371984,123.19,123.15,10.61090664]
[1743801980115,0.05371984,123.19,123.17,8.1214]
[1743801982414,8.17431984,123.19,123.17,8.1214]
[1743801982610,8.17431984,123.19,123.16,8.1223]
[1743801983012,8.1213,123.18,123.16,8.1223]
[1743801983217,8.1213,123.18,123.15,18.73370664]
[1743801983407,0.05371984,123.19,123.15,10.61090664]
[1743801983710,8.17471984,123.19,123.16,8.1219]
[1743801983919,8.17471984,123.19,123.15,10.61090664]
[1743801984216,8.17471984,123.19,123.16,8.122]
[1743801984618,8.17471984,123.19,123.15,10.61090664]
[1743801985107,8.17471984,123.19,123.17,8.1218]
[1743801985510,8.17471984,123.19,123.15,10.61090664]
[1743801985707,8.17471984,123.19,123.16,8.1223]
[1743801986716,8.17471984,123.19,123.17,8.1219]
[1743801986917,8.17471984,123.19,123.15,10.61090664]
[1743801987220,8.17471984,123.19,123.16,8.1223]
[1743801988724,8.17471984,123.19,123.16,18.73320664]
[1743801990520,29.13371984,123.19,123.13,10.61090664]
[1743801990726,16.31098027,123.18,123.13,10.61090664]
[1743801990923,5.75938796,123.17,123.13,10.61090664]
[1743801991126,8.1229,123.16,123.13,10.61090664]
[1743801993028,8.1229,123.16,123.13,18.73530664]
[1743801993425,0.05931433,123.17,123.09,29.84323336]
[1743801993426,8.1232,123.15,123.09,25.62323336]
[1743801993629,8.1232,123.15,123.12,8.1248]
[1743801993826,0.05523759,123.13,123.12,8.1248]
[1743801994922,0.05523759,123.13,123.11,18.73640664]
[1743801995126,0.05523759,123.13,123.11,47.81640664]
[1743801997024,0.05523759,123.13,123.11,18.73640664]
[1743801997419,0.05523759,123.13,123.12,8.1252]
[1743802008450,0.05523759,123.13,123.07,346.16254293]
[1743802008752,0.05523759,123.13,123.08,10.61090664]
[1743802009249,8.18043759,123.13,123.1,8.1263]
[1743802009947,8.1255,123.12,123.08,39.69090664]
[1743802010150,8.1255,123.12,123.09,8.1268]
[1743802010351,8.1255,123.12,123.08,10.61090664]
[1743802010653,8.1255,123.12,123.08,39.69090664]
[1743802010853,8.1255,123.12,123.09,8.1266]
[1743802011652,8.1255,123.12,123.1,8.1265]
[1743802012836,8.17993759,123.13,123.1,8.1265]
[1743802013448,29.13523759,123.13,123.07,10.61090664]
[1743802013753,20.62246372,123.12,123.06,10.61090664]
[1743802013943,14.95540664,123.12,123.06,10.61090664]
[1743802014146,0.05527702,123.1,123.06,18.73980664]
[1743802014650,8.1275,123.09,123.06,18.73980664]
[1743802016455,8.18207702,123.1,123.07,8.1281]
[1743802020660,8.1275,123.09,123.06,18.73970664]
[1743802020858,0.05527702,123.1,123.06,18.73970664]
[1743802021360,0.05527702,123.1,123.07,8.1284]
[1743802021961,8.18207702,123.1,123.07,8.1284]
[1743802022149,0.05527702,123.1,123.08,8.1275]
[1743802023261,8.18207702,123.1,123.08,8.1275]
[1743802024160,0.05527702,123.1,123.06,10.61090664]
[1743802024959,0.05527702,123.1,123.08,10.61090664]
[1743802025358,0.05527702,123.1,123.09,8.1272]
[1743802029067,0.05527702,123.1,123.08,18.73840664]
[1743802033368,8.18187702,123.1,123.08,18.73840664]
[1743802034759,0.05527702,123.1,123.08,18.73840664]
[1743802037667,8.18187702,123.1,123.08,18.73840664]
[1743802039066,8.1272,123.09,123.06,10.61090664]
[1743802039772,8.1272,123.09,123.06,18.73970664]
[1743802042070,8.1281,123.08,123.06,10.61090664]
[1743802042669,8.1275,123.09,123.06,10.61090664]
[1743802043672,8.1275,123.09,123.06,18.74000664]
[1743802045779,8.1279,123.08,123.06,18.74000664]
[1743802046170,0.05527702,123.1,123.06,18.74000664]
[1743802046497,8.1275,123.09,123.06,18.74000664]
[1743802047474,0.05527702,123.1,123.06,10.61090664]
[1743802047673,0.05527702,123.1,123.08,10.61090664]
[1743802048380,0.05527702,123.1,123.08,18.73860664]
[1743802048578,0.05527702,123.1,123.07,29.08]
[1743802048768,0.05527702,123.1,123.07,39.69090664]
[1743802048968,8.18207702,123.1,123.07,47.81910664]
[1743802049879,8.18207702,123.1,123.07,10.61090664]
[1743802049880,8.1273,123.09,123.07,10.61090664]
[1743802050071,8.1273,123.09,123.06,8.1288]
[1743802050274,8.1273,123.09,123.05,41.77340664]
[1743802050583,8.18217702,123.1,123.07,8.1284]
[1743802051383,8.1274,123.09,123.07,8.1284]
[1743802052378,8.18217702,123.1,123.07,8.1284]
[1743802052570,0.05527702,123.1,123.08,8.1276]
[1743802052773,0.05527702,123.1,123.06,29.08]
[1743802053071,8.18207702,123.1,123.06,29.08]
[1743802053384,8.18207702,123.1,123.07,8.128]
[1743802053576,8.1273,123.09,123.06,29.08]
[1743802053985,8.1273,123.09,123.06,37.2086]
[1743802054787,8.18217702,123.1,123.07,8.1284]
[1743802054986,0.05527702,123.1,123.07,8.1284]
[1743802055686,8.1275,123.09,123.06,37.2088]
[1743802055989,8.1275,123.09,123.06,29.08]
[1743802057087,8.1275,123.09,123.07,8.1284]
[1743802058185,0.05527702,123.1,123.06,29.08]
[1743802058990,8.18217702,123.1,123.07,8.1284]
[1743802059287,0.05527702,123.1,123.07,8.1284]
[1743802059689,8.1272,123.09,123.06,37.2087]
[1743802060796,8.1272,123.09,123.07,8.1284]
[1743802060992,8.1272,123.09,123.06,29.08]
[1743802061889,8.1272,123.09,123.06,37.2088]
[1743802067782,8.1272,123.09,123.06,29.08]
[1743802068191,8.1272,123.09,123.06,37.2087]
[1743802074095,8.18217702,123.1,123.07,8.1285]
[1743802074301,0.05527702,123.1,123.06,29.08]
[1743802075698,0.05527702,123.1,123.07,8.1284]
[1743802075899,0.05527702,123.1,123.06,29.08]
[1743802076703,0.05527702,123.1,123.06,39.69090664]
[1743802077091,0.05527702,123.1,123.09,8.1272]
[1743802078002,5.67706775,123.1,123.09,8.1272]
[1743802078200,0.05527702,123.1,123.09,8.1272]
[1743802080701,0.05527702,123.1,123.09,37.2072]
[1743802081606,10.61090664,123.13,123.09,29.08]
[1743802081802,5.61838109,123.12,123.09,29.08]
[1743802082003,18.73450664,123.15,123.09,29.08]
[1743802082196,5.61871371,123.14,123.09,29.08]
[1743802082398,5.61871371,123.13,123.09,29.08]
[1743802082598,5.61871371,123.12,123.09,29.08]
[1743802082807,0.05815447,123.12,123.11,8.1259]
[1743802083008,5.67651501,123.12,123.11,8.1259]
[1743802084910,0.05815447,123.12,123.1,8.1826239]
[1743802086814,0.05815447,123.12,123.1,18.79353054]
[1743802089109,0.05815447,123.12,123.11,8.1259]
[1743802107424,2.1612,123.17,123.1,10.66733054]
[1743802107619,2.1612,123.17,123.13,10.61090664]
[1743802107819,8.1229,123.16,123.13,39.67090664]
[1743802108015,2.1612,123.17,123.13,39.67090664]
[1743802108314,8.1235,123.15,123.13,39.67090664]
[1743802108826,8.18222105,123.15,123.13,39.73318546]
[1743802109521,0.05872105,123.15,123.13,39.73318546]
[1743802109726,0.05872105,123.15,123.13,47.85758546]
[1743802109923,0.05872105,123.15,123.13,39.73318546]
[1743802111122,0.05872105,123.15,123.13,47.85758546]
[1743802111725,8.18202105,123.15,123.13,47.85758546]
[1743802112026,0.05872105,123.15,123.13,47.85758546]
[1743802112222,8.18202105,123.15,123.13,39.73318546]
[1743802114026,8.18202105,123.15,123.13,47.85768546]
[1743802118727,8.18202105,123.15,123.13,39.73318546]
[1743802124834,0.05872105,123.15,123.13,39.73318546]
[1743802125226,339.71774856,123.22,123.13,39.73318546]
[1743802125427,339.71774856,123.22,123.16,10.61090664]
[1743802125628,339.71774856,123.22,123.17,29.06]
[1743802125926,339.71774856,123.22,123.18,8.1211]
[1743802126130,305.86496214,123.22,123.18,8.1211]
[1743802126431,0.05994288,123.21,123.19,0.05193722]
[1743802128138,8.17934288,123.21,123.19,0.05193722]
[1743802128338,0.05994288,123.21,123.19,0.05193722]
[1743802129241,8.17924288,123.21,123.19,0.05193722]
[1743802129844,0.05994288,123.21,123.19,0.05193722]
[1743802130042,0.05994288,123.21,123.19,8.17253722]
[1743802131645,0.05994288,123.21,123.19,0.05193722]
[1743802134038,0.05994288,123.21,123.19,8.17243722]
[1743802137841,0.05994288,123.21,123.19,0.05193722]
[1743802138746,8.17924288,123.21,123.19,0.05193722]
[1743802141749,8.1199,123.2,123.19,0.05193722]
[1743802142146,0.05994288,123.21,123.19,0.05193722]
[1743802142470,8.17944288,123.21,123.19,0.05193722]
[1743802146452,0.05994288,123.21,123.19,8.17243722]
[1743802146977,8.17934288,123.21,123.19,8.17243722]
[1743802147347,0.05994288,123.21,123.19,8.17243722]
[1743802151962,0.05994288,123.21,123.2,8.1199]
[1743802164479,0.05994288,123.21,123.19,8.17213722]
[1743802165781,0.05994288,123.21,123.2,8.1199]
[1743802186904,0.05994288,123.21,123.19,0.05193722]
[1743802186905,0.05994288,123.21,123.19,8.17213722]
[1743802187199,8.17954288,123.21,123.19,8.17213722]
[1743802187405,0.05994288,123.21,123.19,0.05193722]
[1743802187807,8.1199,123.2,123.19,0.05193722]
[1743802192906,8.17954288,123.21,123.19,0.05193722]
[1743802197213,8.17954288,123.21,123.19,8.17243722]
[1743802200145,8.17954288,123.21,123.19,0.05193722]
[1743802202116,0.05994288,123.21,123.19,0.05193722]
[1743802202823,8.17934288,123.21,123.19,0.05193722]
[1743802217915,8.1199,123.2,123.19,0.05193722]